[Event "Early-Titled-Tuesday-Blitz-August-29-2023"]
[Site "Chess.com"]
[Date "2023.08.29"]
[Round "2"]
[White "jerry_77"]
[Black "Aleksandar-Topalov"]
[Result "1-0"]
[WhiteElo "2627"]
[BlackElo "2324"]
[TimeControl "180+1"]
[EndTime "8:17:34 PDT"]
[Termination "jerry_77 won by checkmate"]

1. e4 {[%clk 0:03:00.9]} 1... e6 {[%clk 0:02:59.9]} 2. d4 {[%clk 0:03:00.6]}
2... d5 {[%clk 0:03:00]} 3. Nd2 {[%clk 0:03:01.5]} 3... Nf6 {[%clk 0:02:59.7]}
4. e5 {[%clk 0:03:01.7]} 4... Ng8 {[%clk 0:02:59.8]} 5. Ndf3 {[%clk 0:03:02.6]}
5... Ne7 {[%clk 0:02:59.9]} 6. Ne2 {[%clk 0:03:02.7]} 6... Qd7 {[%clk
0:02:59.8]} 7. c3 {[%clk 0:03:03]} 7... b6 {[%clk 0:03:00.1]} 8. Nf4 {[%clk
0:03:03]} 8... Ba6 {[%clk 0:02:59.7]} 9. Bxa6 {[%clk 0:03:01.3]} 9... Nxa6
{[%clk 0:02:59.9]} 10. h4 {[%clk 0:03:02.2]} 10... h5 {[%clk 0:02:52.8]} 11. a3
{[%clk 0:03:01.9]} 11... c5 {[%clk 0:02:49.8]} 12. Ng5 {[%clk 0:03:01.6]} 12...
g6 {[%clk 0:02:49.9]} 13. Qf3 {[%clk 0:03:00.5]} 13... Nf5 {[%clk 0:02:43.2]}
14. Qd3 {[%clk 0:02:53]} 14... Nc7 {[%clk 0:02:42.8]} 15. f3 {[%clk 0:02:53.1]}
15... Be7 {[%clk 0:02:37.4]} 16. Bd2 {[%clk 0:02:46.8]} 16... cxd4 {[%clk
0:02:27.4]} 17. cxd4 {[%clk 0:02:44.5]} 17... Qb5 {[%clk 0:02:27.4]} 18. Qc3
{[%clk 0:02:32.7]} 18... Na6 {[%clk 0:01:27.1]} 19. Kf2 {[%clk 0:02:19]} 19...
Kf8 {[%clk 0:01:13.9]} 20. Ngxe6+ {[%clk 0:01:53]} 20... fxe6 {[%clk 0:01:11.7]}
21. Nxg6+ {[%clk 0:01:53.5]} 21... Kf7 {[%clk 0:01:07.9]} 22. Nxh8+ {[%clk
0:01:54.4]} 22... Rxh8 {[%clk 0:01:05.6]} 23. Bg5 {[%clk 0:01:54.6]} 23... Qc4
{[%clk 0:00:38.3]} 24. Bxe7 {[%clk 0:01:28.3]} 24... Kxe7 {[%clk 0:00:37.3]} 25.
Rad1 {[%clk 0:01:16]} 25... Qxc3 {[%clk 0:00:29.6]} 26. bxc3 {[%clk 0:01:15.4]}
26... Rg8 {[%clk 0:00:29.3]} 27. Rdg1 {[%clk 0:01:13.3]} 27... Nh6 {[%clk
0:00:21.3]} 28. a4 {[%clk 0:01:09.7]} 28... Nb8 {[%clk 0:00:20.7]} 29. a5 {[%clk
0:01:08.6]} 29... b5 {[%clk 0:00:17.5]} 30. a6 {[%clk 0:01:06.4]} 30... Rc8
{[%clk 0:00:16.5]} 31. g4 {[%clk 0:01:06.4]} 31... Rxc3 {[%clk 0:00:15.4]} 32.
gxh5 {[%clk 0:01:03.4]} 32... Nf5 {[%clk 0:00:14.8]} 33. h6 {[%clk 0:01:00.2]}
33... Rc2+ {[%clk 0:00:13.2]} 34. Ke1 {[%clk 0:01:00.1]} 34... Nxh6 {[%clk
0:00:10.3]} 35. Kd1 {[%clk 0:00:54.8]} 35... Ra2 {[%clk 0:00:09.9]} 36. Kc1
{[%clk 0:00:55.1]} 36... Nf5 {[%clk 0:00:08.6]} 37. Kb1 {[%clk 0:00:54.9]} 37...
Rxa6 {[%clk 0:00:08.8]} 38. h5 {[%clk 0:00:54.8]} 38... Nc6 {[%clk 0:00:07]} 39.
h6 {[%clk 0:00:54.6]} 39... Nxh6 {[%clk 0:00:06.3]} 40. Rxh6 {[%clk 0:00:54.6]}
40... Nxd4 {[%clk 0:00:05.9]} 41. Rg7+ {[%clk 0:00:54.7]} 41... Kf8 {[%clk
0:00:06.3]} 42. Rb7 {[%clk 0:00:55.2]} 42... Rb6 {[%clk 0:00:06.1]} 43. Rh8#
{[%clk 0:00:55]} 1-0

[Event "Early-Titled-Tuesday-Blitz-August-29-2023"]
[Site "Chess.com"]
[Date "2023.08.29"]
[Round "2"]
[White "valemava"]
[Black "CSB7"]
[Result "1-0"]
[WhiteElo "2329"]
[BlackElo "2700"]
[TimeControl "180+1"]
[EndTime "8:17:35 PDT"]
[Termination "valemava won by resignation"]

1. Nf3 {[%clk 0:03:00.9]} 1... Nf6 {[%clk 0:02:58.3]} 2. c4 {[%clk 0:03:00.4]}
2... g6 {[%clk 0:02:56.4]} 3. b3 {[%clk 0:02:55]} 3... Bg7 {[%clk 0:02:55.6]} 4.
Bb2 {[%clk 0:02:55.1]} 4... O-O {[%clk 0:02:56.2]} 5. g3 {[%clk 0:02:54.8]} 5...
b6 {[%clk 0:02:48.8]} 6. Bg2 {[%clk 0:02:53.7]} 6... Bb7 {[%clk 0:02:49.5]} 7.
O-O {[%clk 0:02:53.8]} 7... c5 {[%clk 0:02:47.8]} 8. d3 {[%clk 0:02:53.6]} 8...
Nc6 {[%clk 0:02:46]} 9. h3 {[%clk 0:02:52.6]} 9... d5 {[%clk 0:02:44.1]} 10.
cxd5 {[%clk 0:02:50.7]} 10... Nxd5 {[%clk 0:02:45]} 11. Bxg7 {[%clk 0:02:49]}
11... Kxg7 {[%clk 0:02:45.9]} 12. Qc1 {[%clk 0:02:48.8]} 12... e5 {[%clk
0:02:44.1]} 13. Qb2 {[%clk 0:02:48.2]} 13... Re8 {[%clk 0:02:34.5]} 14. Nbd2
{[%clk 0:02:47.6]} 14... Nd4 {[%clk 0:02:18.2]} 15. Rfe1 {[%clk 0:02:45.3]}
15... f6 {[%clk 0:02:03.3]} 16. Rad1 {[%clk 0:02:39.4]} 16... Qd7 {[%clk
0:01:58.4]} 17. Kh2 {[%clk 0:02:37.3]} 17... Rad8 {[%clk 0:01:54.1]} 18. a3
{[%clk 0:02:36.1]} 18... h6 {[%clk 0:01:42.2]} 19. e3 {[%clk 0:02:30.6]} 19...
Nxf3+ {[%clk 0:01:42]} 20. Nxf3 {[%clk 0:02:31.3]} 20... Qb5 {[%clk 0:01:37.2]}
21. Nd2 {[%clk 0:02:04.1]} 21... Qa6 {[%clk 0:01:18.1]} 22. d4 {[%clk
0:01:53.9]} 22... Nc7 {[%clk 0:01:04]} 23. dxe5 {[%clk 0:01:47.7]} 23... Rxe5
{[%clk 0:01:01.3]} 24. Nc4 {[%clk 0:01:45.7]} 24... Rxd1 {[%clk 0:00:37.3]} 25.
Rxd1 {[%clk 0:01:46.6]} 25... Re7 {[%clk 0:00:37.6]} 26. Rd6 {[%clk 0:01:39.9]}
26... Ne8 {[%clk 0:00:35]} 27. Rd8 {[%clk 0:01:34.2]} 27... Bxg2 {[%clk
0:00:30.8]} 28. Kxg2 {[%clk 0:01:35.1]} 28... Qb7+ {[%clk 0:00:30.7]} 29. Kg1
{[%clk 0:01:23.4]} 29... Qf3 {[%clk 0:00:28.6]} 30. Qd2 {[%clk 0:01:20.1]} 30...
h5 {[%clk 0:00:24.6]} 31. h4 {[%clk 0:01:18.8]} 31... Kh7 {[%clk 0:00:20.5]} 32.
Rd7 {[%clk 0:01:17.9]} 32... Rxd7 {[%clk 0:00:20.6]} 33. Qxd7+ {[%clk
0:01:16.9]} 33... Ng7 {[%clk 0:00:21.3]} 34. Nd6 {[%clk 0:01:16.4]} 34... Qd1+
{[%clk 0:00:18]} 35. Kh2 {[%clk 0:01:15.6]} 35... Qd2 {[%clk 0:00:09.9]} 36. Kg2
{[%clk 0:01:10.3]} 36... b5 {[%clk 0:00:10.1]} 37. Ne8 {[%clk 0:01:08.8]} 37...
Qxd7 {[%clk 0:00:06.5]} 38. Nxf6+ {[%clk 0:01:08.5]} 38... Kh6 {[%clk
0:00:05.8]} 39. Nxd7 {[%clk 0:01:09.4]} 39... c4 {[%clk 0:00:05.8]} 40. bxc4
{[%clk 0:01:07.1]} 40... bxc4 {[%clk 0:00:06.7]} 41. Kf3 {[%clk 0:01:05.8]}
41... g5 {[%clk 0:00:04.8]} 42. Ke4 {[%clk 0:01:02.1]} 42... gxh4 {[%clk
0:00:03.6]} 43. gxh4 {[%clk 0:01:02.6]} 43... Ne6 {[%clk 0:00:04.1]} 44. Ne5
{[%clk 0:01:01.6]} 44... Nc5+ {[%clk 0:00:01.4]} 45. Kd4 {[%clk 0:01:00.5]}
45... Nd7 {[%clk 0:00:02.1]} 46. Nxd7 {[%clk 0:00:59.6]} 1-0

[Event "Early-Titled-Tuesday-Blitz-August-29-2023"]
[Site "Chess.com"]
[Date "2023.08.29"]
[Round "2"]
[White "IPAchess"]
[Black "JoseRemolar"]
[Result "1-0"]
[WhiteElo "2335"]
[BlackElo "2500"]
[TimeControl "180+1"]
[EndTime "8:17:35 PDT"]
[Termination "IPAchess won by resignation"]

1. d4 {[%clk 0:03:00.9]} 1... Nf6 {[%clk 0:02:57.5]} 2. c4 {[%clk 0:03:01.4]}
2... g6 {[%clk 0:02:57.5]} 3. Nc3 {[%clk 0:03:00.5]} 3... Bg7 {[%clk 0:02:56.6]}
4. e4 {[%clk 0:03:00.5]} 4... d6 {[%clk 0:02:56.8]} 5. Be2 {[%clk 0:03:01.2]}
5... O-O {[%clk 0:02:56.9]} 6. Be3 {[%clk 0:03:01.8]} 6... e5 {[%clk 0:02:49]}
7. d5 {[%clk 0:03:01.6]} 7... Na6 {[%clk 0:02:48.9]} 8. g4 {[%clk 0:03:01.1]}
8... Nc5 {[%clk 0:02:48.9]} 9. f3 {[%clk 0:03:01.7]} 9... a5 {[%clk 0:02:47.8]}
10. h4 {[%clk 0:03:00.4]} 10... Ne8 {[%clk 0:02:46.9]} 11. h5 {[%clk 0:02:54.6]}
11... f5 {[%clk 0:02:46.9]} 12. hxg6 {[%clk 0:02:52.5]} 12... hxg6 {[%clk
0:02:47.8]} 13. gxf5 {[%clk 0:02:52.1]} 13... gxf5 {[%clk 0:02:48.7]} 14. Qd2
{[%clk 0:02:39.6]} 14... f4 {[%clk 0:02:22]} 15. Bxc5 {[%clk 0:02:09.1]} 15...
dxc5 {[%clk 0:02:22.9]} 16. O-O-O {[%clk 0:02:08.9]} 16... Nd6 {[%clk
0:02:07.6]} 17. Bd3 {[%clk 0:01:54.6]} 17... b6 {[%clk 0:02:01.1]} 18. Qh2
{[%clk 0:01:48.2]} 18... Qf6 {[%clk 0:01:51.4]} 19. Nge2 {[%clk 0:01:38.9]}
19... Ba6 {[%clk 0:01:47.8]} 20. b3 {[%clk 0:01:27.5]} 20... a4 {[%clk 0:01:48]}
21. Kb2 {[%clk 0:01:24]} 21... axb3 {[%clk 0:01:41.3]} 22. axb3 {[%clk
0:01:24.9]} 22... Bc8 {[%clk 0:01:17]} 23. Rdg1 {[%clk 0:01:21.7]} 23... Bd7
{[%clk 0:01:13.9]} 24. Qh7+ {[%clk 0:01:00.4]} 24... Kf7 {[%clk 0:01:13.7]} 25.
Qh5+ {[%clk 0:01:01.1]} 25... Ke7 {[%clk 0:01:12.8]} 26. Rg6 {[%clk 0:01:00]}
26... Rh8 {[%clk 0:00:53.9]} 27. Rxf6 {[%clk 0:00:30.1]} 27... Rxh5 {[%clk
0:00:52.1]} 28. Rxh5 {[%clk 0:00:25.8]} 28... Kxf6 {[%clk 0:00:48.2]} 29. Nxf4
{[%clk 0:00:23.5]} 29... exf4 {[%clk 0:00:44.3]} 30. e5+ {[%clk 0:00:23.9]}
30... Ke7 {[%clk 0:00:41.3]} 31. exd6+ {[%clk 0:00:24]} 31... cxd6 {[%clk
0:00:42]} 32. Rh7 {[%clk 0:00:22.6]} 32... Kf8 {[%clk 0:00:40.8]} 33. Kc2 {[%clk
0:00:22.9]} 33... Ke7 {[%clk 0:00:16]} 34. Rxg7+ {[%clk 0:00:22.5]} 1-0

[Event "Early-Titled-Tuesday-Blitz-August-29-2023"]
[Site "Chess.com"]
[Date "2023.08.29"]
[Round "2"]
[White "CADMartin"]
[Black "Dewarfd"]
[Result "1-0"]
[WhiteElo "2470"]
[BlackElo "2203"]
[TimeControl "180+1"]
[EndTime "8:17:35 PDT"]
[Termination "CADMartin won on time"]

1. e3 {[%clk 0:02:55.6]} 1... d5 {[%clk 0:02:58]} 2. Nf3 {[%clk 0:02:54.5]} 2...
c5 {[%clk 0:02:56.9]} 3. b3 {[%clk 0:02:54.4]} 3... e6 {[%clk 0:02:56.4]} 4. Bb2
{[%clk 0:02:55.3]} 4... Nc6 {[%clk 0:02:56.2]} 5. Bb5 {[%clk 0:02:55.8]} 5...
Bd7 {[%clk 0:02:46.3]} 6. O-O {[%clk 0:02:47.2]} 6... Nf6 {[%clk 0:02:46.5]} 7.
Bxc6 {[%clk 0:02:45.3]} 7... Bxc6 {[%clk 0:02:46.3]} 8. Ne5 {[%clk 0:02:45.9]}
8... Rc8 {[%clk 0:02:34.2]} 9. f4 {[%clk 0:02:45.5]} 9... Be7 {[%clk 0:02:32.9]}
10. d4 {[%clk 0:02:43.7]} 10... cxd4 {[%clk 0:02:32.1]} 11. exd4 {[%clk
0:02:43.5]} 11... O-O {[%clk 0:02:06.2]} 12. Nd2 {[%clk 0:02:42.9]} 12... Bb4
{[%clk 0:02:03.5]} 13. Ndf3 {[%clk 0:02:40.1]} 13... Ne4 {[%clk 0:02:01.2]} 14.
Qd3 {[%clk 0:02:38.3]} 14... f5 {[%clk 0:02:01]} 15. c3 {[%clk 0:02:37]} 15...
Bd6 {[%clk 0:02:00]} 16. a4 {[%clk 0:02:34.9]} 16... a6 {[%clk 0:01:58]} 17. Ba3
{[%clk 0:02:34.5]} 17... Be8 {[%clk 0:01:35.2]} 18. Bxd6 {[%clk 0:02:29]} 18...
Rxc3 {[%clk 0:01:28.8]} 19. Qxc3 {[%clk 0:02:27.4]} 19... Nxc3 {[%clk
0:01:28.5]} 20. Bxf8 {[%clk 0:02:28.3]} 20... Kxf8 {[%clk 0:01:29.2]} 21. Rfe1
{[%clk 0:02:24.7]} 21... h6 {[%clk 0:01:24.6]} 22. Rac1 {[%clk 0:02:23.8]} 22...
Qa5 {[%clk 0:01:22.4]} 23. Nd3 {[%clk 0:02:10.2]} 23... Ne4 {[%clk 0:01:06.3]}
24. Rc8 {[%clk 0:02:03.8]} 24... Ke7 {[%clk 0:01:06.3]} 25. Nde5 {[%clk
0:01:52.3]} 25... Bd7 {[%clk 0:00:44.2]} 26. Nxd7 {[%clk 0:01:51.2]} 26... Kxd7
{[%clk 0:00:44.1]} 27. Rec1 {[%clk 0:01:51.9]} 27... g5 {[%clk 0:00:16.1]} 28.
Ne5+ {[%clk 0:01:51.3]} 28... Kd6 {[%clk 0:00:14.3]} 29. Nf7+ {[%clk 0:01:45.9]}
29... Ke7 {[%clk 0:00:13]} 30. R8c7+ {[%clk 0:01:41]} 30... Kf6 {[%clk
0:00:13.5]} 31. Ne5 {[%clk 0:01:19.1]} 31... gxf4 {[%clk 0:00:13.3]} 32. h4
{[%clk 0:01:19.6]} 32... Nd6 {[%clk 0:00:12.5]} 33. Nf3 {[%clk 0:01:09.1]} 33...
Nc4 {[%clk 0:00:08.9]} 34. Rh7 {[%clk 0:01:06.1]} 34... Ne3 {[%clk 0:00:05.6]}
35. Rcc7 {[%clk 0:01:04.3]} 35... Qc3 {[%clk 0:00:01.4]} 36. Rxc3 {[%clk
0:00:52.8]} 1-0

[Event "Early-Titled-Tuesday-Blitz-August-29-2023"]
[Site "Chess.com"]
[Date "2023.08.29"]
[Round "2"]
[White "ChainedDowntohell"]
[Black "FeketeBarika"]
[Result "1-0"]
[WhiteElo "2527"]
[BlackElo "2311"]
[TimeControl "180+1"]
[EndTime "8:17:40 PDT"]
[Termination "ChainedDowntohell won by resignation"]

1. Nf3 {[%clk 0:03:00.9]} 1... d5 {[%clk 0:02:56.3]} 2. c4 {[%clk 0:02:59.9]}
2... c6 {[%clk 0:02:53.7]} 3. e3 {[%clk 0:02:59.1]} 3... Nf6 {[%clk 0:02:53.6]}
4. Nc3 {[%clk 0:02:59.1]} 4... e6 {[%clk 0:02:52.6]} 5. b3 {[%clk 0:02:58.4]}
5... Nbd7 {[%clk 0:02:51.9]} 6. Bb2 {[%clk 0:02:58.7]} 6... Bd6 {[%clk
0:02:52.1]} 7. d4 {[%clk 0:02:58.6]} 7... O-O {[%clk 0:02:51.7]} 8. Bd3 {[%clk
0:02:51.4]} 8... Re8 {[%clk 0:02:46.2]} 9. O-O {[%clk 0:02:35.8]} 9... e5 {[%clk
0:02:31.1]} 10. dxe5 {[%clk 0:02:34.1]} 10... Nxe5 {[%clk 0:02:29.1]} 11. cxd5
{[%clk 0:02:19.4]} 11... cxd5 {[%clk 0:02:27.5]} 12. Be2 {[%clk 0:02:05.3]}
12... Bb8 {[%clk 0:02:19.7]} 13. Nb5 {[%clk 0:01:49.9]} 13... Nxf3+ {[%clk
0:01:50.6]} 14. Bxf3 {[%clk 0:01:50.8]} 14... Be6 {[%clk 0:01:50]} 15. Rc1
{[%clk 0:01:49.8]} 15... a6 {[%clk 0:01:09.2]} 16. Nd4 {[%clk 0:01:44.8]} 16...
Qd6 {[%clk 0:01:04.8]} 17. g3 {[%clk 0:01:44.6]} 17... Bh3 {[%clk 0:01:03.6]}
18. Re1 {[%clk 0:01:44.2]} 18... Ne4 {[%clk 0:01:02.2]} 19. Ne2 {[%clk
0:01:38.6]} 19... Ng5 {[%clk 0:00:59.5]} 20. Nf4 {[%clk 0:01:30.8]} 20... Nxf3+
{[%clk 0:00:54.8]} 21. Qxf3 {[%clk 0:01:31.7]} 21... Be6 {[%clk 0:00:53.3]} 22.
Red1 {[%clk 0:01:28.7]} 22... Ba7 {[%clk 0:00:33.9]} 23. Nxd5 {[%clk 0:01:15.5]}
23... Bxd5 {[%clk 0:00:33.5]} 24. Rxd5 {[%clk 0:01:11.1]} 24... Qg6 {[%clk
0:00:32.8]} 25. Kg2 {[%clk 0:00:56.3]} 25... Rac8 {[%clk 0:00:29.8]} 26. Rxc8
{[%clk 0:00:43.9]} 26... Rxc8 {[%clk 0:00:30.7]} 27. Rd7 {[%clk 0:00:42.7]}
27... h5 {[%clk 0:00:30.3]} 28. Rxb7 {[%clk 0:00:37.7]} 28... Bb6 {[%clk
0:00:29.9]} 29. h4 {[%clk 0:00:33.5]} 29... Rc2 {[%clk 0:00:29.1]} 30. Rb8+
{[%clk 0:00:20.2]} 30... Kh7 {[%clk 0:00:28.5]} 31. Be5 {[%clk 0:00:12.3]} 31...
Qe6 {[%clk 0:00:22.8]} 32. Qxh5+ {[%clk 0:00:11.6]} 32... Qh6 {[%clk 0:00:20.6]}
33. Rh8+ {[%clk 0:00:10.4]} 1-0

[Event "Early-Titled-Tuesday-Blitz-August-29-2023"]
[Site "Chess.com"]
[Date "2023.08.29"]
[Round "2"]
[White "MathiasWomacka"]
[Black "matagordo"]
[Result "1-0"]
[WhiteElo "2458"]
[BlackElo "2166"]
[TimeControl "180+1"]
[EndTime "8:17:43 PDT"]
[Termination "MathiasWomacka won on time"]

1. e4 {[%clk 0:03:00.9]} 1... e6 {[%clk 0:02:58.1]} 2. d4 {[%clk 0:02:59.4]}
2... d5 {[%clk 0:02:58.7]} 3. Nd2 {[%clk 0:02:59.4]} 3... h6 {[%clk 0:02:47.6]}
4. Ngf3 {[%clk 0:02:57.2]} 4... Nf6 {[%clk 0:02:47.8]} 5. Bd3 {[%clk 0:02:54.8]}
5... dxe4 {[%clk 0:02:30.3]} 6. Nxe4 {[%clk 0:02:53.2]} 6... Bd7 {[%clk
0:02:23.6]} 7. Ne5 {[%clk 0:02:41.7]} 7... Bc6 {[%clk 0:02:21]} 8. Nxf6+ {[%clk
0:02:23.6]} 8... Qxf6 {[%clk 0:02:18.7]} 9. Nxc6 {[%clk 0:02:12]} 9... Nxc6
{[%clk 0:02:19.6]} 10. Bb5 {[%clk 0:02:07.4]} 10... Bd6 {[%clk 0:02:14.6]} 11.
Be3 {[%clk 0:01:57.4]} 11... O-O {[%clk 0:02:12.2]} 12. Bxc6 {[%clk 0:01:50.6]}
12... bxc6 {[%clk 0:02:13.1]} 13. Qh5 {[%clk 0:01:49.4]} 13... Rab8 {[%clk
0:01:57.4]} 14. b3 {[%clk 0:01:38.5]} 14... Bb4+ {[%clk 0:01:52.9]} 15. Ke2
{[%clk 0:01:38.6]} 15... Bc3 {[%clk 0:01:29.2]} 16. Rad1 {[%clk 0:01:37.3]}
16... e5 {[%clk 0:01:29.2]} 17. dxe5 {[%clk 0:01:31.1]} 17... Bxe5 {[%clk
0:01:30.1]} 18. Rd7 {[%clk 0:01:17.9]} 18... Rbe8 {[%clk 0:01:20.9]} 19. Qf3
{[%clk 0:01:07.8]} 19... Bf4 {[%clk 0:01:03.5]} 20. Rhd1 {[%clk 0:01:07.1]}
20... Bxe3 {[%clk 0:01:01.7]} 21. Qxf6 {[%clk 0:01:05.8]} 21... Bg5+ {[%clk
0:01:02.2]} 22. Kf3 {[%clk 0:00:49.2]} 22... Bxf6 {[%clk 0:00:49.5]} 23. Rxc7
{[%clk 0:00:49.7]} 23... Re6 {[%clk 0:00:06.8]} 24. Rxa7 {[%clk 0:00:49.1]}
24... Rfe8 {[%clk 0:00:07.5]} 25. Rdd7 {[%clk 0:00:47.7]} 25... R6e7 {[%clk
0:00:06.3]} 26. a4 {[%clk 0:00:46.7]} 26... Rxd7 {[%clk 0:00:05.8]} 27. Rxd7
{[%clk 0:00:45.4]} 27... Re7 {[%clk 0:00:04.8]} 28. Rd8+ {[%clk 0:00:39]} 28...
Kh7 {[%clk 0:00:04.7]} 29. Rc8 {[%clk 0:00:39.9]} 29... Re6 {[%clk 0:00:04.2]}
30. a5 {[%clk 0:00:36.4]} 30... Bc3 {[%clk 0:00:02.7]} 31. a6 {[%clk 0:00:36]}
31... Re7 {[%clk 0:00:01.6]} 32. Rxc6 {[%clk 0:00:34.6]} 32... Be5 {[%clk
0:00:01.4]} 33. b4 {[%clk 0:00:32.7]} 33... Ra7 {[%clk 0:00:01.1]} 34. b5 {[%clk
0:00:30]} 1-0

[Event "Early-Titled-Tuesday-Blitz-August-29-2023"]
[Site "Chess.com"]
[Date "2023.08.29"]
[Round "2"]
[White "Preobrazhenska_D2011"]
[Black "HajiyevKanan"]
[Result "0-1"]
[WhiteElo "2286"]
[BlackElo "2506"]
[TimeControl "180+1"]
[EndTime "8:17:44 PDT"]
[Termination "HajiyevKanan won by checkmate"]

1. e4 {[%clk 0:02:58.4]} 1... c6 {[%clk 0:02:56.1]} 2. d4 {[%clk 0:02:57.4]}
2... d5 {[%clk 0:02:57]} 3. exd5 {[%clk 0:02:58]} 3... cxd5 {[%clk 0:02:57.9]}
4. Nf3 {[%clk 0:02:58.9]} 4... Nc6 {[%clk 0:02:58]} 5. c4 {[%clk 0:02:59]} 5...
Bg4 {[%clk 0:02:58.3]} 6. Be3 {[%clk 0:02:57.7]} 6... e6 {[%clk 0:02:55.8]} 7.
Nc3 {[%clk 0:02:57]} 7... Bb4 {[%clk 0:02:55.8]} 8. a3 {[%clk 0:02:41.9]} 8...
Bxc3+ {[%clk 0:02:52.2]} 9. bxc3 {[%clk 0:02:42.8]} 9... Nf6 {[%clk 0:02:51.6]}
10. c5 {[%clk 0:02:40]} 10... O-O {[%clk 0:02:50.6]} 11. Bd3 {[%clk 0:02:33.6]}
11... Ne4 {[%clk 0:02:50.4]} 12. Qc2 {[%clk 0:02:27.1]} 12... f5 {[%clk
0:02:47.1]} 13. h3 {[%clk 0:01:53.7]} 13... Bh5 {[%clk 0:02:46]} 14. Bd2 {[%clk
0:01:10.6]} 14... b6 {[%clk 0:02:38.8]} 15. cxb6 {[%clk 0:00:47]} 15... axb6
{[%clk 0:02:39.7]} 16. Ne5 {[%clk 0:00:38.4]} 16... Nxe5 {[%clk 0:02:35]} 17.
dxe5 {[%clk 0:00:39.3]} 17... Qh4 {[%clk 0:02:32]} 18. O-O {[%clk 0:00:31.7]}
18... Rac8 {[%clk 0:02:23.5]} 19. Rab1 {[%clk 0:00:21.8]} 19... Rc6 {[%clk
0:02:19.1]} 20. Bb5 {[%clk 0:00:20.5]} 20... Rc7 {[%clk 0:02:05.9]} 21. Bd3
{[%clk 0:00:17.7]} 21... Rc6 {[%clk 0:02:05.3]} 22. Rb3 {[%clk 0:00:18]} 22...
Nc5 {[%clk 0:02:02.2]} 23. Rb5 {[%clk 0:00:14.8]} 23... f4 {[%clk 0:01:57.9]}
24. Bxh7+ {[%clk 0:00:13.6]} 24... Kh8 {[%clk 0:01:58.2]} 25. Bg6 {[%clk
0:00:12.3]} 25... Be2 {[%clk 0:01:50.3]} 26. Rbb1 {[%clk 0:00:12]} 26... f3
{[%clk 0:01:48.1]} 27. Rfe1 {[%clk 0:00:09.5]} 27... Ne4 {[%clk 0:01:41]} 28.
Bxe4 {[%clk 0:00:08.6]} 28... dxe4 {[%clk 0:01:41.9]} 29. Be3 {[%clk 0:00:05.6]}
29... Bd3 {[%clk 0:01:36.6]} 30. Qa4 {[%clk 0:00:06.2]} 30... b5 {[%clk
0:01:31.6]} 31. Qb4 {[%clk 0:00:06.5]} 31... Rfc8 {[%clk 0:01:25.6]} 32. Rbd1
{[%clk 0:00:06.9]} 32... fxg2 {[%clk 0:01:17.5]} 33. Kxg2 {[%clk 0:00:05.1]}
33... Rxc3 {[%clk 0:01:11.8]} 34. Qd6 {[%clk 0:00:05.6]} 34... R3c6 {[%clk
0:01:09.3]} 35. Qd4 {[%clk 0:00:05.8]} 35... Qh5 {[%clk 0:01:07]} 36. Rd2 {[%clk
0:00:04.2]} 36... Qf3+ {[%clk 0:01:01.8]} 37. Kh2 {[%clk 0:00:04.9]} 37... Kh7
{[%clk 0:00:53.5]} 38. Rg1 {[%clk 0:00:05.8]} 38... Rc1 {[%clk 0:00:52.3]} 39.
Rxc1 {[%clk 0:00:02.7]} 39... Rxc1 {[%clk 0:00:53.2]} 40. Rxd3 {[%clk
0:00:02.4]} 40... Rh1# {[%clk 0:00:52.8]} 0-1

[Event "Early-Titled-Tuesday-Blitz-August-29-2023"]
[Site "Chess.com"]
[Date "2023.08.29"]
[Round "2"]
[White "atalz0"]
[Black "underthebridge1999"]
[Result "0-1"]
[WhiteElo "2486"]
[BlackElo "2321"]
[TimeControl "180+1"]
[EndTime "8:17:50 PDT"]
[Termination "underthebridge1999 won on time"]

1. d4 {[%clk 0:03:00.9]} 1... Nf6 {[%clk 0:02:57.9]} 2. c4 {[%clk 0:03:00.9]}
2... g6 {[%clk 0:02:53.8]} 3. f3 {[%clk 0:03:00.8]} 3... d5 {[%clk 0:02:49.4]}
4. cxd5 {[%clk 0:03:01.7]} 4... Nxd5 {[%clk 0:02:49.8]} 5. e4 {[%clk 0:02:59.2]}
5... Nb6 {[%clk 0:02:49.9]} 6. Nc3 {[%clk 0:02:57.8]} 6... Bg7 {[%clk
0:02:49.5]} 7. Be3 {[%clk 0:02:58.4]} 7... O-O {[%clk 0:02:49]} 8. a4 {[%clk
0:02:58.3]} 8... a5 {[%clk 0:02:43.1]} 9. Rc1 {[%clk 0:02:58.2]} 9... Nc6 {[%clk
0:02:42.6]} 10. Nb5 {[%clk 0:02:58.7]} 10... Bd7 {[%clk 0:02:33.1]} 11. h4
{[%clk 0:02:53.2]} 11... Nb4 {[%clk 0:02:27.1]} 12. h5 {[%clk 0:02:33.9]} 12...
Bxb5 {[%clk 0:01:49.2]} 13. Bxb5 {[%clk 0:02:23.8]} 13... c6 {[%clk 0:01:44.8]}
14. Be2 {[%clk 0:02:20.7]} 14... Qd6 {[%clk 0:01:33.1]} 15. Kf2 {[%clk 0:01:58]}
15... Rad8 {[%clk 0:01:21]} 16. e5 {[%clk 0:01:28.6]} 16... Qe6 {[%clk
0:01:02.5]} 17. h6 {[%clk 0:01:07.1]} 17... Bxe5 {[%clk 0:00:59.8]} 18. Nh3
{[%clk 0:00:36.1]} 18... Bg3+ {[%clk 0:00:24.6]} 19. Kxg3 {[%clk 0:00:34.3]}
19... Qxe3 {[%clk 0:00:24.8]} 20. Rc3 {[%clk 0:00:10.7]} 20... Qxd4 {[%clk
0:00:16.7]} 21. Qxd4 {[%clk 0:00:10.5]} 21... Rxd4 {[%clk 0:00:17.6]} 22. b3
{[%clk 0:00:10.6]} 22... N6d5 {[%clk 0:00:12.3]} 23. Rc5 {[%clk 0:00:10.6]}
23... b6 {[%clk 0:00:11.2]} 24. Rcc1 {[%clk 0:00:09.8]} 24... Rd2 {[%clk
0:00:11.2]} 25. Bc4 {[%clk 0:00:08.4]} 25... Ne3 {[%clk 0:00:11.4]} 26. Nf4
{[%clk 0:00:06]} 26... e5 {[%clk 0:00:10.3]} 27. Ne2 {[%clk 0:00:02.1]} 27...
Nxc4 {[%clk 0:00:09.5]} 0-1